fUST/lending_fUST_20251116
["ID","MTS","AMOUNT","RATE_DAILY","PERIOD"]
[394045010,1763222678462,10000.01,0.000199,2]
[394045011,1763222678489,10000.01,0.000199,2]
[394045012,1763222678516,10000.01,0.000199,2]
[394045013,1763222678542,10000.01,0.000199,2]
[394045014,1763222678573,0.01,0.000199,2]
[394045015,1763222702196,151.53,5e-05,2]
[394045016,1763222702612,151.53,5.6e-05,2]
[394045017,1763222702943,151.53,6.2e-05,2]
[394045018,1763222703202,151.53,6.8e-05,2]
[394045019,1763222703502,151.53,7.3e-05,2]
[394045020,1763222703791,151.53,7.9e-05,2]
[394045021,1763222704084,151.53,8.5e-05,2]
[394045022,1763222704436,151.53,9.1e-05,2]
[394045023,1763222704768,151.53,9.7e-05,2]
[394045024,1763222705108,151.53,0.000103,2]
[394045025,1763222705402,151.53,0.000108,2]
[394045026,1763222705773,151.53,0.000114,2]
[394045031,1763222752144,-4645.8514409,0.00024552,10]
[394045032,1763222762657,151.52,5e-05,2]
[394045059,1763222880442,191.16,0.00016983,30]
[394045060,1763222880918,191.14,0.00016983,30]
[394045067,1763222933491,300.0,0.0001,7]
[394045068,1763222935977,300.0,0.0001,7]
[394045069,1763222938291,300.0,0.0001,7]
[394045070,1763222940847,300.0,0.0001,7]
[394045071,1763222943244,300.0,0.0001,7]
[394045072,1763222945722,300.0,0.0001,7]
[394045073,1763222948191,214.5906,0.0001,7]
[394045074,1763222948219,85.4094,0.0001,7]
[394045075,1763222950812,300.0,0.0001,7]
[394045076,1763222953692,300.0,0.0001,7]
[394045077,1763222956329,300.0,0.0001,7]
[394045078,1763222959901,300.0,0.0001,20]
[394045079,1763222962413,300.0,0.0001,20]
[394045080,1763222965181,300.0,0.0001,20]
[394045081,1763222968142,300.0,0.0001,20]
[394045082,1763222970527,300.0,0.0001,20]
[394045083,1763222972875,300.0,0.0001,20]
[394045084,1763222975377,300.0,0.0001,20]
[394045085,1763222977911,300.0,0.0001,20]
[394045086,1763222980090,300.0,0.0001,20]
[394045087,1763222982526,267.6,0.0001,20]
[394045178,1763223038065,-1225.14,0.00023971,2]
[394045180,1763223038075,-2894.12338749,0.00024213,2]
[394045335,1763223039933,-1469.24213891,0.00024213,2]
[394045336,1763223039987,-636.6344736,0.00024213,2]
[394045338,1763223039997,-189.37642958,0.00024363,4]
[394045340,1763223040007,-591.89978223,0.00024363,4]
[394045342,1763223040016,-189.0617559,0.00024457,2]
[394045374,1763223046079,-99.77319762,0.00024457,2]
[394045375,1763223046090,-300.0,0.00024551,2]
[394045376,1763223046101,-5000.0,0.00024552,2]
[394045377,1763223046111,-199.13245301,0.00024782,2]
[394045378,1763223046120,-7167.26175981,0.00024792,2]
[394045382,1763223176011,169.678392,0.000328,120]
[394045383,1763223182763,218.97,5e-05,2]
[394045385,1763223304941,353.607832,0.00013699,2]
[394045426,1763223455105,5000.0,0.00019995,2]
[394045427,1763223470953,3774.86,0.00019995,2]
[394045428,1763223478847,871.542168,0.00019995,2]
[394045429,1763223478871,4128.457832,0.00019995,2]
[394045430,1763223487067,5000.0,0.00019995,2]
[394045431,1763223494866,871.552168,0.00019995,2]
[394045432,1763223494891,442.82977388,0.00019995,2]
[394045433,1763223495900,-353.607832,0.00020187,2]
[394045434,1763223495929,-155.8044989,0.00022892,2]
[394045435,1763223495958,-150.0,0.00023901,2]
[394045436,1763223495990,-163.958,0.00024534,7]
[394045437,1763223496017,-259.08019209,0.00024691,2]
[394045438,1763223496043,-300.0,0.00024772,2]
[394045439,1763223496069,-500.88433886,0.00024773,2]
[394045440,1763223496095,-288.3655581,0.00024773,2]
[394045441,1763223496120,-500.0,0.00024773,2]
[394045442,1763223496145,-500.0,0.00024773,2]
[394045443,1763223496171,-228.84,0.00024782,10]
[394045444,1763223496196,-500.0,0.0002479,2]
[394045445,1763223496220,-500.0,0.0002479,2]
[394045446,1763223496244,-500.0,0.0002479,2]
[394045447,1763223496269,-500.0,0.0002479,2]
[394045448,1763223496294,-500.0,0.0002479,2]
[394045449,1763223496320,-500.0,0.0002479,2]
[394045450,1763223496348,-500.0,0.0002479,2]
[394045451,1763223496375,-500.0,0.0002479,2]
[394045452,1763223496402,-500.0,0.0002479,2]
[394045453,1763223496429,-500.0,0.0002479,2]
[394045454,1763223496454,-500.0,0.0002479,2]
[394045455,1763223496483,-500.0,0.0002479,2]
[394045456,1763223496510,-500.0,0.0002479,2]
[394045457,1763223496535,-500.0,0.0002479,2]
[394045458,1763223496562,-500.0,0.0002479,2]
[394045459,1763223496595,-500.0,0.0002479,2]
[394045460,1763223496623,-500.0,0.0002479,2]
[394045461,1763223496648,-500.0,0.0002479,2]
[394045462,1763223496676,-500.0,0.0002479,2]
[394045463,1763223496701,-500.0,0.0002479,2]
[394045464,1763223496725,-327.71492566,0.0002479,2]
[394045465,1763223496747,-291.37924766,0.0002479,2]
[394045466,1763223496773,-500.0,0.0002479,2]
[394045467,1763223496798,-500.0,0.0002479,2]
[394045468,1763223496826,-500.0,0.0002479,2]
[394045469,1763223496853,-500.0,0.0002479,2]
[394045470,1763223496881,-500.0,0.0002479,2]
[394045471,1763223496912,-500.0,0.0002479,2]
[394045472,1763223496940,-500.0,0.0002479,2]
[394045473,1763223497072,-500.0,0.0002479,2]
[394045474,1763223497101,-500.0,0.0002479,2]
[394045475,1763223497136,-500.0,0.0002479,2]
[394045476,1763223497164,-500.0,0.0002479,2]
[394045477,1763223497191,-500.0,0.0002479,2]
[394045478,1763223497217,-500.0,0.0002479,2]
[394045479,1763223497244,-500.0,0.0002479,2]
[394045480,1763223497274,-500.0,0.0002479,2]
[394045481,1763223497301,-500.0,0.0002479,2]
[394045482,1763223497331,-500.0,0.0002479,2]
[394045483,1763223497358,-500.0,0.0002479,2]
[394045484,1763223497387,-500.0,0.0002479,2]
[394045485,1763223497414,-500.0,0.0002479,2]
[394045486,1763223497441,-500.0,0.0002479,2]
[394045487,1763223497468,-477.83675599,0.0002479,2]
[394045488,1763223497498,-500.0,0.0002479,2]
[394045489,1763223497528,-500.0,0.0002479,2]
[394045490,1763223497554,-500.0,0.0002479,2]
[394045491,1763223497581,-190.75419997,0.0002479,2]
[394045492,1763223497606,-500.0,0.0002479,2]
[394045493,1763223497632,-500.0,0.0002479,2]
[394045494,1763223497661,-500.0,0.0002479,2]
[394045495,1763223497687,-500.0,0.0002479,2]
[394045496,1763223497713,-500.0,0.0002479,2]
[394045497,1763223497740,-500.0,0.0002479,2]
[394045498,1763223497771,-500.0,0.0002479,2]
[394045499,1763223497796,-500.0,0.0002479,2]
[394045500,1763223497826,-595.73688893,0.0002479,2]
[394045501,1763223497855,-500.0,0.0002479,2]
[394045502,1763223497886,-500.0,0.0002479,2]
[394045503,1763223497917,-500.0,0.0002479,2]
[394045504,1763223497945,-399.40901722,0.0002479,2]
[394045505,1763223497980,-500.0,0.0002479,2]
[394045506,1763223498011,-500.0,0.0002479,2]
[394045507,1763223498040,-500.0,0.0002479,2]
[394045508,1763223498068,-580.1929856,0.0002479,2]
[394045509,1763223498104,-500.0,0.0002479,2]
[394045510,1763223498140,-500.0,0.0002479,2]
[394045511,1763223498174,-500.0,0.0002479,2]
[394045512,1763223498207,-500.0,0.0002479,2]
[394045513,1763223498241,-250.0,0.0002479,2]
[394045514,1763223498269,-300.0,0.00024791,2]
[394045515,1763223498297,-1200.0,0.00024791,2]
[394045516,1763223498329,-581.41,0.00024791,2]
[394045517,1763223498356,-581.41,0.00024791,2]
[394045518,1763223498383,-581.41,0.00024791,2]
[394045519,1763223498412,-581.41,0.00024791,2]
[394045520,1763223498438,-581.41,0.00024791,2]
[394045521,1763223498463,-581.41,0.00024791,2]
[394045522,1763223498488,-581.41,0.00024791,2]
[394045523,1763223498514,-581.41,0.00024791,2]
[394045524,1763223498540,-581.41,0.00024791,2]
[394045525,1763223498568,-581.41,0.00024791,2]
[394045526,1763223498594,-581.41,0.00024791,2]
[394045527,1763223498620,-581.41,0.00024791,2]
[394045528,1763223498646,-581.41,0.00024791,2]
[394045529,1763223498673,-581.41,0.00024791,2]
[394045530,1763223498699,-581.41,0.00024791,2]
[394045531,1763223498726,-581.41,0.00024791,2]
[394045532,1763223498751,-581.41,0.00024791,2]
[394045533,1763223498776,-581.41,0.00024791,2]
[394045534,1763223498801,-581.41,0.00024791,2]
[394045535,1763223498828,-581.41,0.00024791,2]
[394045536,1763223498853,-581.41,0.00024791,2]
[394045537,1763223498883,-581.41,0.00024791,2]
[394045538,1763223498913,-581.41,0.00024791,2]
[394045539,1763223498939,-581.6369047,0.00024791,2]
[394045540,1763223498967,-830032.36865432,0.00024792,2]
[394045541,1763223503251,-5000.0,0.00024534,10]
[394045542,1763223503280,-190.7,0.00024782,10]
[394045543,1763223503310,-52800.36958587,0.00024792,2]
[394045544,1763223503340,-209.17247324,0.000248,2]
[394045545,1763223503366,-684.0,0.00024882,30]
[394045546,1763223503393,-2731.49,0.000249,7]
[394045547,1763223503421,-211.6,0.000249,14]
[394045548,1763223503453,-151.0,0.000249,9]
[394045549,1763223503479,-151.0,0.000249,10]
[394045550,1763223503504,-151.0,0.000249,8]
[394045551,1763223503529,-151.0,0.000249,7]
[394045552,1763223503556,-177531.452645,0.000249,2]
[394045553,1763223503580,-222.54678493,0.00024992,2]
[394045554,1763223503604,-597.0,0.00025,2]
[394045606,1763223946108,-748.57354817,0.00023055,10]
[394045609,1763224037078,-2523.06362831,0.00023055,10]
[394045662,1763224236632,-203.82714149,0.00022124,2]
[394045663,1763224236642,-423.52311703,0.000225,2]
[394045664,1763224236651,-150.0,0.00022515,2]
[394045665,1763224236661,-249.0,0.00022529,2]
[394045666,1763224236671,-1728.57840661,0.0002253,2]
[394045667,1763224236682,-573.89636814,0.0002253,2]
[394045668,1763224236750,-10434.71286905,0.0002253,2]
[394045669,1763224236760,-5353.57001541,0.00023,2]
[394045670,1763224236769,-5000.0,0.00023055,10]
[394045671,1763224236778,-2431.1078562,0.00023635,2]
[394045672,1763224236787,-500.0,0.00024141,2]
[394045673,1763224236796,-500.0,0.00024141,2]
[394045674,1763224236805,-330.87075067,0.00024141,2]
[394045675,1763224236815,-620.02144285,0.00024141,2]
[394045676,1763224236824,-500.0,0.00024141,2]
[394045677,1763224236833,-187.86157777,0.00024141,2]
[394045678,1763224236842,-322.15655747,0.00024141,2]
[394045679,1763224236851,-43273.60268384,0.00024142,2]
[394045680,1763224236861,-226.69516807,0.00024283,2]
[394045681,1763224236870,-1964.05512592,0.00024383,2]
[394045682,1763224236878,-177.0,0.00024515,2]
[394045683,1763224236888,-7366.32440552,0.0002465,2]
[394045684,1763224236897,-293.23811661,0.00024665,4]
[394045685,1763224236907,-229.78066075,0.00024673,2]
[394045686,1763224236916,-502.06072498,0.00024673,2]
[394045687,1763224236925,-500.0,0.00024673,2]
[394045688,1763224236935,-503.94670184,0.00024673,2]
[394045689,1763224236943,-500.0,0.00024673,2]
[394045690,1763224236953,-525.53599044,0.00024673,2]
[394045691,1763224236962,-500.0,0.00024673,2]
[394045692,1763224236972,-500.0,0.00024673,2]
[394045693,1763224236981,-158.92,0.00024681,10]
[394045694,1763224236990,-794.63,0.00024681,10]
[394045695,1763224236999,-163.958,0.0002469,7]
[394045696,1763224237008,-453.61871982,0.0002469,2]
[394045697,1763224237017,-11006.33263278,0.00024691,2]
[394045721,1763224237804,-186668.03839411,0.00024691,2]
[394045722,1763224237816,-703.52979223,0.00024691,2]
[394045723,1763224237827,-474.65,0.00024691,2]
[394045724,1763224237838,-959.8617775,0.00024691,2]
[394045789,1763224246270,-4796.42,0.00024444,10]
[394045797,1763224246333,-203.58,0.00024444,10]
[394045799,1763224246343,-796.42,0.00024691,2]
[394045868,1763224615464,-500.0,0.00023054,2]
[394045869,1763224615495,-57115.1284685,0.00023673,2]
[394045870,1763224615522,-500.0,0.00024141,2]
[394045871,1763224615545,-500.0,0.00024141,2]
[394045872,1763224615568,-5000.0,0.000242,10]
[394045873,1763224615592,-150.0,0.00024322,2]
[394045874,1763224615616,-163.95915748,0.00024444,7]
[394045875,1763224615641,-2199.59292569,0.00024574,4]
[394045876,1763224615666,-890000.0,0.00024591,2]
[394045877,1763224615692,-198.35827207,0.000246,2]
[394045878,1763224615717,-500.0,0.00024672,2]
[394045879,1763224615742,-157.97,0.000247,14]
[394045880,1763224615766,-2499.55,0.000247,7]
[394045881,1763224615789,-522.9311831,0.000248,2]
[394045882,1763224615811,-2097.0360043,0.00024809,2]
[394045883,1763224615834,-3277.8156656,0.00024809,2]
[394045884,1763224615857,-12821.7160245,0.000249,2]
[394045885,1763224615884,-500.0,0.00024973,2]
[394045886,1763224615909,-504.37921029,0.00024973,2]
[394045887,1763224615932,-500.0,0.00024973,2]
[394045888,1763224615956,-500.0,0.00024973,2]
[394045889,1763224615979,-986.28584804,0.0002499,2]
[394045890,1763224616002,-449.20965615,0.00024992,2]
[394045891,1763224616024,-807.7688037,0.00024992,2]
[394045892,1763224616046,-623.21799561,0.00024992,2]
[394045893,1763224616069,-402.02248795,0.00024999,2]
[394045894,1763224616093,-890.18713972,0.00024999,2]
[394045895,1763224616122,-15632.8711573,0.00025,2]
[394045897,1763224683577,267.61,0.00016983,2]
[394046016,1763225041344,-5000.0,0.0002277,2]
[394046017,1763225041368,-114842.66,0.00023,2]
[394046018,1763225041390,-533.2722871,0.00023573,2]
[394046019,1763225041416,-500.0,0.00023573,2]
[394046020,1763225041440,-879124.0677129,0.00023573,2]
[394046021,1763225132138,-662.34373121,0.00023337,2]
[394046026,1763225248076,-501.84012826,0.00023337,2]
[394046030,1763225351122,-1734.49553372,0.00023104,10]
[394046095,1763225432108,-150.0,0.00023514,2]
[394046096,1763225432118,-10875.9322871,0.00023573,2]
[394046097,1763225432127,-443.2315309,0.00024089,2]
[394046098,1763225432136,-3269.1505695,0.00024574,2]
[394046099,1763225432145,-500.0,0.0002469,2]
[394046100,1763225432155,-500.0,0.0002469,2]
[394046101,1763225432164,-500.0,0.0002469,2]
[394046102,1763225432173,-1964.05512593,0.00024862,2]
[394046103,1763225432182,-1402.24049013,0.00024992,2]
[394046104,1763225432191,-2490.37911046,0.00024992,2]
[394046105,1763225432200,-2002.92106438,0.00024992,2]
[394046106,1763225432209,-5737.30837729,0.00024998,2]
[394046107,1763225432219,-31298.16114886,0.00025,2]
[394046268,1763225446584,-370.24530207,0.00025,2]
[394046270,1763225584694,-4847.2204791,0.00023805,10]
[394046271,1763225584716,-894.572367,0.00024045,2]
[394046272,1763225584739,-884258.2071539,0.000248,2]
[394046299,1763226226665,446.9113,0.00013699,2]
[394046320,1763226348129,-446.9113,0.00020187,2]
[394046321,1763226348153,-3800.58936993,0.00023159,10]
[394046322,1763226360426,-2000000.0,0.00039168,20]
[394046328,1763226430158,-150.0,0.00023276,2]
[394046329,1763226430181,-1171.77951399,0.00023393,2]
[394046330,1763226430201,-300.0,0.00024039,2]
[394046331,1763226430220,-1737.52540406,0.0002404,30]
[394046333,1763226484090,151.17,0.00017483,2]
[394046334,1763226484361,151.15,0.00017483,2]
[394046445,1763226638223,-373.25610201,0.00023316,2]
[394046490,1763226643802,-386.8462462,0.00023316,2]
[394046497,1763226684343,-4239.89765179,0.00023316,2]
[394046498,1763226684368,-150.0,0.00023434,2]
[394046499,1763226684390,-288.09654726,0.00023551,2]
[394046500,1763226684413,-247.0,0.00024039,2]
[394046501,1763226684433,-8623.71257775,0.0002404,30]
[394046502,1763226684454,-184.5392978,0.00024283,2]
[394046503,1763226684475,-156.0178439,0.00024283,2]
[394046504,1763226684496,-280.93281347,0.00024791,2]
[394046505,1763226684518,-437.05357596,0.00024791,2]
[394046506,1763226684548,-187.92840187,0.00024791,2]
[394046507,1763226684573,-428.96676064,0.00024837,2]
[394046508,1763226684595,-500.0,0.00024873,2]
[394046509,1763226684616,-500.0,0.00024873,2]
[394046510,1763226684771,-735.05,0.0002489,10]
[394046511,1763226684793,-260.1115956,0.00024899,2]
[394046512,1763226684816,-263.82319606,0.00024899,2]
[394046513,1763226684841,-500.0,0.00024899,2]
[394046514,1763226684864,-467.83431194,0.00024899,2]
[394046515,1763226684888,-349.10722512,0.00024899,2]
[394046516,1763226684914,-500.0,0.00024899,2]
[394046517,1763226684940,-384.57368889,0.00024899,2]
[394046518,1763226684964,-873601.80451195,0.000249,2]
[394046519,1763226691938,-16398.19548805,0.000249,2]
[394046520,1763226691961,-3286.45,0.000249,7]
[394046521,1763226691986,-1591.0,0.00024937,2]
[394046522,1763226692007,-8824.4182173,0.0002499,2]
[394046523,1763226692028,-962.05175508,0.00025,2]
[394046524,1763227131019,-845.26207097,0.0002429,10]
[394046525,1763227131041,-247.04309887,0.00024586,2]
[394046526,1763227131063,-247.623306,0.00024638,4]
[394046527,1763227131086,-168.0,0.00024643,2]
[394046528,1763227131108,-210.3783413,0.00024686,2]
[394046529,1763227131129,-168.0,0.00024699,7]
[394046530,1763227131151,-168.0,0.00024762,2]
[394046531,1763227131174,-500.0,0.00024773,2]
[394046532,1763227131196,-500.0,0.00024773,2]
[394046533,1763227131216,-386.85,0.0002479,3]
[394046534,1763227131238,-182.07811692,0.00024799,2]
[394046535,1763227131260,-890000.0,0.000248,2]
[394046536,1763227131281,-2607.97,0.000248,7]
[394046537,1763227131303,-157.97,0.000248,14]
[394046540,1763227533133,-748.57354817,0.00023705,10]
[394046541,1763227533308,-280.0,0.00023944,2]
[394046542,1763227533329,-263.02425217,0.00023947,2]
[394046552,1763227641081,-2320.9412783,0.00023708,10]
[394046554,1763227685742,3099.38742233,0.00019205,5]
[394046556,1763227706048,-1525.56842033,0.0002,2]
[394046568,1763227734159,5000.0,0.00019996,2]
[394046569,1763227742245,154.17,5e-05,2]
[394046570,1763227742622,154.17,5.2e-05,2]
[394046571,1763227742958,154.17,5.4e-05,2]
[394046572,1763227743228,154.17,5.7e-05,2]
[394046573,1763227743520,154.17,5.9e-05,2]
[394046574,1763227743792,154.17,6.1e-05,2]
[394046575,1763227744079,154.17,6.3e-05,2]
[394046576,1763227744373,154.17,6.5e-05,2]
[394046577,1763227744646,154.17,6.8e-05,2]
[394046578,1763227744936,154.17,7e-05,2]
[394046579,1763227745325,154.17,7.2e-05,2]
[394046580,1763227745610,154.17,7.4e-05,2]
[394046581,1763227745886,50.58257767,7.6e-05,2]
[394046582,1763227745911,103.58742233,7.6e-05,2]
[394046583,1763227746216,154.17,7.9e-05,2]
[394046584,1763227746534,154.17,8.1e-05,2]
[394046585,1763227746853,154.17,8.3e-05,2]
[394046586,1763227747167,154.17,8.5e-05,2]
[394046587,1763227747460,154.17,8.8e-05,2]
[394046588,1763227747772,154.17,9e-05,2]
[394046589,1763227748069,154.17,9.2e-05,2]
[394046590,1763227748359,154.17,9.4e-05,2]
[394046591,1763227748664,154.17,9.6e-05,2]
[394046592,1763227748947,154.17,9.9e-05,2]
[394046593,1763227749330,154.17,0.000101,2]
[394046594,1763227749610,154.17,0.000103,2]
[394046595,1763227749885,154.17,0.000105,2]
[394046596,1763227750224,154.17,0.000107,2]
[394046597,1763227750508,154.17,0.00011,2]
[394046598,1763227750804,154.17,0.000112,2]
[394046599,1763227751192,154.17,0.000114,2]
[394046600,1763227751497,154.17,0.000116,2]
[394046601,1763227751789,154.17,0.000118,2]
[394046602,1763227752069,154.17,0.000121,2]
[394046603,1763227752357,154.17,0.000123,2]
[394046604,1763227752636,154.17,0.000125,2]
[394046605,1763227753286,-554.66354744,0.0002,2]
[394046606,1763227753308,-5511.15595764,0.00021,5]
[394046607,1763227753330,-300.0,0.00021999,2]
[394046608,1763227753351,-16718.86248937,0.00022,5]
[394046609,1763227753373,-602.77216134,0.000225,2]
[394046610,1763227753394,-420.0,0.00023906,2]
[394046611,1763227753417,-16.97574783,0.00023947,2]
[394046612,1763227753564,-18358.03506156,0.00024142,2]
[394046613,1763227753586,-168.0,0.00024607,2]
[394046614,1763227753606,-433.88,0.0002469,3]
[394046615,1763227753627,-216.94,0.0002469,3]
[394046616,1763227753648,-650.85,0.0002469,3]
[394046617,1763227753670,-332.32500998,0.00024699,2]
[394046618,1763227753691,-711.06,0.00024699,2]
[394046619,1763227753713,-711.06,0.00024699,2]
[394046620,1763227753735,-711.06,0.00024699,2]
[394046621,1763227753756,-711.06,0.00024699,2]
[394046622,1763227753777,-711.06,0.00024699,2]
[394046623,1763227753800,-711.06,0.00024699,2]
[394046624,1763227753824,-711.06,0.00024699,2]
[394046625,1763227753846,-711.06,0.00024699,2]
[394046626,1763227753867,-711.06,0.00024699,2]
[394046627,1763227753889,-711.06,0.00024699,2]
[394046628,1763227753911,-711.06,0.00024699,2]
[394046629,1763227753933,-711.06,0.00024699,2]
[394046630,1763227753954,-711.06,0.00024699,2]
[394046631,1763227753976,-711.06,0.00024699,2]
[394046632,1763227753998,-711.06,0.00024699,2]
[394046633,1763227754020,-711.06,0.00024699,2]
[394046634,1763227754043,-711.06,0.00024699,2]
[394046635,1763227754063,-711.06,0.00024699,2]
[394046636,1763227754086,-711.06,0.00024699,2]
[394046637,1763227754108,-711.06,0.00024699,2]
[394046638,1763227754129,-711.06,0.00024699,2]
[394046639,1763227754150,-711.06,0.00024699,2]
[394046640,1763227754171,-711.06,0.00024699,2]
[394046641,1763227754192,-711.07161971,0.00024699,2]
[394046642,1763227754215,-838650.08840513,0.000247,2]
[394046643,1763227759878,-202.12235001,0.00024453,2]
[394046644,1763227759903,-51349.91159487,0.000247,2]
[394046645,1763227759925,-2347.18,0.000247,7]
[394046646,1763227759948,-157.97,0.000247,14]
[394046647,1763227802031,169.65,5e-05,2]
[394046648,1763227802338,169.65,6.5e-05,2]
[394046649,1763227802661,169.65,8e-05,2]
[394046650,1763227803002,169.65,9.5e-05,2]
[394046651,1763227803301,169.65,0.00011,2]
[394046652,1763227803609,169.65,0.000125,2]
[394046712,1763227838297,-4554.3663321,0.00023732,2]
[394046715,1763227838309,-5000.0,0.00024373,10]
[394046716,1763227838319,-611.0,0.00024619,2]
[394046718,1763227838329,-611.0,0.00024654,7]
[394046720,1763227838338,-209.40437684,0.00024685,2]
[394046722,1763227838348,-603.61779246,0.00024698,2]
[394046724,1763227838358,-500.0,0.00024698,2]
[394046726,1763227838367,-500.0,0.00024698,2]
[394046728,1763227838377,-500.0,0.00024698,2]
[394046730,1763227838387,-500.0,0.00024698,2]
[394046732,1763227838396,-500.0,0.00024698,2]
[394046734,1763227838406,-500.0,0.00024698,2]
[394046736,1763227838416,-505.4381957,0.00024698,2]
[394046738,1763227838426,-500.0,0.00024698,2]
[394046740,1763227838436,-500.0,0.00024698,2]
[394046742,1763227838446,-271.66247101,0.00024698,2]
[394046744,1763227838456,-500.0,0.00024698,2]
[394046745,1763227838465,-500.0,0.00024698,2]
[394046747,1763227838475,-500.0,0.00024698,2]
[394046749,1763227838485,-500.0,0.00024698,2]
[394046750,1763227838494,-500.0,0.00024698,2]
[394046751,1763227838504,-500.0,0.00024698,2]
[394046752,1763227838513,-500.0,0.00024698,2]
[394046753,1763227838524,-500.0,0.00024698,2]
[394046754,1763227838534,-183.83587601,0.00024698,2]
[394046755,1763227838544,-476.54222765,0.00024698,2]
[394046756,1763227838555,-500.0,0.00024698,2]
[394046757,1763227838568,-500.0,0.00024698,2]
[394046758,1763227838578,-500.0,0.00024698,2]
[394046759,1763227838588,-345.95578847,0.00024698,2]
[394046760,1763227838598,-500.0,0.00024698,2]
[394046761,1763227838608,-500.0,0.00024698,2]
[394046762,1763227838617,-500.0,0.00024698,2]
[394046763,1763227838627,-621.27207082,0.00024698,2]
[394046764,1763227838637,-500.0,0.00024698,2]
[394046765,1763227838647,-500.0,0.00024698,2]
[394046766,1763227838656,-500.0,0.00024698,2]
[394046767,1763227838665,-500.0,0.00024698,2]
[394046768,1763227838675,-500.0,0.00024698,2]
[394046769,1763227838684,-500.0,0.00024698,2]
[394046770,1763227838694,-500.0,0.00024698,2]
[394046771,1763227838704,-500.0,0.00024698,2]
[394046772,1763227838714,-500.0,0.00024698,2]
[394046773,1763227838724,-500.0,0.00024698,2]
[394046774,1763227838733,-500.0,0.00024698,2]
[394046775,1763227838743,-500.0,0.00024698,2]
[394046776,1763227838753,-500.0,0.00024698,2]
[394046777,1763227838763,-500.0,0.00024698,2]
[394046778,1763227838773,-500.0,0.00024698,2]
[394046779,1763227838783,-500.0,0.00024698,2]
[394046780,1763227838793,-500.0,0.00024698,2]
[394046781,1763227838802,-500.0,0.00024698,2]
[394046782,1763227838813,-500.0,0.00024698,2]
[394046783,1763227838822,-300.0,0.00024698,2]
[394046784,1763227838832,-50000.0,0.00024699,2]
[394046785,1763227838841,-2097.6703986,0.00024699,2]
[394046786,1763227838855,-500.0,0.00024699,2]
[394046787,1763227838865,-500.0,0.00024699,2]
[394046788,1763227838875,-611.0,0.00024758,2]
[394046789,1763227838885,-433.80988382,0.00024773,2]
[394046790,1763227838895,-500.0,0.00024773,2]
[394046791,1763227838905,-500.0,0.00024773,2]
[394046792,1763227838915,-587.62383257,0.00024773,2]
[394046793,1763227838928,-500.0,0.00024773,2]
[394046794,1763227838939,-500.0,0.00024773,2]
[394046795,1763227838949,-500.0,0.00024773,2]
[394046796,1763227838959,-168.0,0.0002481,2]
[394046797,1763227838969,-312.0356878,0.00024839,2]
[394046798,1763227838979,-611.0,0.00024896,2]
[394046799,1763227838989,-5325.94357956,0.000249,2]
[394046800,1763227838999,-337.93285225,0.00024946,2]